[Event "Romanian Rapid Open 2022"]
[Site "Sebes"]
[Date "2022.12.02"]
[Round "1.9"]
[White "Sulita, Vlad-Petre"]
[Black "Berescu, Alin-Mile"]
[Result "0-1"]
[ECO "B15"]
[WhiteElo "1632"]
[BlackElo "2429"]
[Annotator "TA"]
[PlyCount "44"]
[EventDate "2022.12.02"]
[EventType "rapid"]
[EventCountry "ROU"]
[SourceTitle "playchess.com"]
[Source "ChessBase"]
[SourceQuality "1"]
[TimeControl "600+5"]

{[%evp 9,44,30,75,40,48,46,39,41,32,24,39,0,0,0,0,0,0,4,0,-90,-95,-95,-43,-257,-64,-72,-64,-208,-200,-316,-325,-839,-771,-3423,-3152,-29997,-29998]} 1. e4 {[%emt 0:00:01]} c6 {[%emt 0:00:02]} 2. d4 {[%emt 0:00:03]} d5 {[%emt 0:00:01]} 3. Nc3 {[%emt 0:00:04]} g6 {[%emt 0:00:09]} 4. Nf3 {[%emt 0:00:19]} Bg7 {[%emt 0:00:04]} 5. Be2 {[%emt 0:00:14]} Nh6 {[%emt 0:00:06]} 6. O-O {[%emt 0:00:12] B15: Caro-Kann: 3 Nc3: 3...g6 and 3...dxe4 4 Nxe4 Nf6 5 Nxf6+ exf6.} O-O {[%emt 0:00:05]} 7. Bf4 {[%emt 0:00:26]} f6 {[%emt 0:00:11][%cal Bf7f6,Bf6e5,Be5e4][%mdl 32]} 8. h3 {[%emt 0:00:23] White is slightly better.} Nf7 {[%emt 0:00:04]} 9. exd5 {[%emt 0:00:27]} cxd5 {[%emt 0:00:02] [#]} 10. a3 $146 {[%emt 0:00:22]} ({Predecessor:} 10. Bg3 Nc6 11. Re1 a6 12. a4 Re8 13. Bf1 b6 14. Rb1 Nb4 15. Qd2 e5 16. dxe5 fxe5 {0-1 (31) Lyahov,P (2118)-Kozak,A (2235) Stavropol 2019}) 10... e5 {[%emt 0:00:30]} 11. dxe5 {[%emt 0:00:03]} fxe5 {[%emt 0:00:02]} 12. Bg3 {[%emt 0:00:08]} Be6 {[%emt 0:00:09]} 13. Qd2 {[%emt 0:00:24]} Nc6 {[%emt 0:00:24]} 14. Rfe1 {[%emt 0:00:08]} (14. Rad1 $11) 14... e4 $17 {[%emt 0:02:00]} 15. Nh2 {[%emt 0:01:33]} Bh6 {[%emt 0:00:56]} ({Better is} 15... h5 $17 {aiming for ...Bh6.} 16. Rad1 h4) 16. Bf4 $2 {[%emt 0:00:22] [#]} (16. Qd1 $1 $15) 16... Bxf4 $2 (16... Ng5 $1 $19 {[%cal Rg5h3] And now ...Nxh3+! would win.} 17. Bxg5 Bxg5) 17. Qxf4 $15 {[%emt 0:00:01] [#]} Nd6 $1 $36 {[%emt 0:00:28][%mdl 2048] Black has some pressure.} 18. Qd2 {[%emt 0:00:30]} (18. Qg3 $15) 18... d4 $19 {[%emt 0:01:19]} 19. Na4 {[%emt 0:00:23]} (19. Nd1 $142) 19... Rxf2 {[%emt 0:00:17]} 20. Qd1 $2 {[%emt 0:01:43]} (20. Rf1 e3 21. Qe1) 20... Qh4 {[%emt 0:00:18]} 21. Bg4 {[%emt 0:00:07] [#]} Qg3 $1 {[%emt 0:04:43][%csl Gf2][%cal Rg3g2]} 22. Bxe6+ {[%emt 0:04:02]} (22. Bf3 exf3) 22... Kg7 {Weighted Error Value: White=1.26/Black=0.17 (very precise)} 0-1

[Event "Romanian Rapid Open 2022"]
[Site "Sebes"]
[Date "2022.12.02"]
[Round "1.10"]
[White "Dragomirescu, Robin-Alexandru"]
[Black "Pop, Ioan I."]
[Result "1-0"]
[ECO "C18"]
[WhiteElo "2337"]
[BlackElo "1540"]
[Annotator "TA"]
[PlyCount "83"]
[EventDate "2022.12.02"]
[EventType "rapid"]
[EventCountry "ROU"]
[SourceTitle "playchess.com"]
[Source "ChessBase"]
[SourceQuality "1"]
[TimeControl "600+5"]

{[%evp 11,83,-5,-2,-2,63,23,29,23,30,25,42,52,57,39,42,51,374,360,421,431,431,429,402,402,427,429,502,502,489,500,495,492,469,454,458,468,517,517,531,520,525,532,510,508,495,463,606,577,862,851,865,838,1051,1039,994,983,1379,1167,1570,1096,5629,1215,29988,29989,29987,851,29987,29988,29988,29989,29989,29990,29990,665]} 1. e4 {[%emt 0:00:03]} e6 {[%emt 0:00:09]} 2. d4 {[%emt 0:00:04]} d5 {[%emt 0:00:01]} 3. Nc3 {[%emt 0:00:01]} Bb4 {[%emt 0:00:07]} 4. e5 {[%emt 0:00:02]} c5 {[%emt 0:00:07]} 5. a3 {[%emt 0:00:01]} Ba5 {[%emt 0:00:08]} 6. dxc5 {[%emt 0:00:14]} Bxc3+ $1 {[%emt 0:00:03]} 7. bxc3 {[%emt 0:00:02] C18: French: 3 Nc3 Bb4: Main line: 7 h4 and 7 Qg4.} Nc6 {[%emt 0:00:07]} (7... Ne7 $11) 8. Nf3 {[%emt 0:00:02]} (8. Qg4 $5 {[%cal Rg4g7]} Kf8 9. Nf3 $14) 8... Qa5 {[%emt 0:00:01]} 9. Bd2 {[%emt 0:00:12] White has an edge.} Qxc5 {[%emt 0:00:03]} 10. Bd3 {[%emt 0:00:02]} Nge7 {[%emt 0:00:16]} 11. O-O {[%emt 0:00:04]} O-O {[%emt 0:00:05]} 12. Qe2 {[%emt 0:00:33][%cal Od3h7] Hoping for Bxh7+!} (12. Ng5 {looks sharper.} h6 13. Nh7 Nxe5 14. Nxf8 Kxf8 15. Re1) 12... Ng6 {[%emt 0:00:19]} 13. h4 {[%emt 0:00:22] [#]} Ngxe5 $146 {[%emt 0:00:19][%mdl 8192] This move loses the game for Black.} ({Predecessor:} 13... f6 14. exf6 gxf6 15. c4 d4 16. c3 e5 17. g3 Bg4 18. Be4 f5 19. Bd5+ Kg7 {½-½ (40) Touret Hidalgo,J (1693)-Terrazas Alarcon,G (1981) Antofagasta 2015}) 14. Nxe5 $18 {[%emt 0:00:07]} Nxe5 {[%emt 0:00:02]} 15. Qxe5 {[%emt 0:00:04]} f6 {[%emt 0:00:02]} 16. Qh5 {[%emt 0:00:14]} f5 {[%emt 0:00:14]} 17. Bf4 {[%emt 0:00:41]} Bd7 {[%emt 0:00:22]} 18. Be5 {[%emt 0:00:08]} Be8 {[%emt 0:00:14]} 19. Qg5 {[%emt 0:00:05][%csl Ge5][%cal Rg5g7]} Rf7 {[%emt 0:00:15]} 20. Rfe1 {[%emt 0:00:18]} Bd7 {[%emt 0:00:14]} 21. Re3 {[%emt 0:00:27]} Qe7 {[%emt 0:00:06]} 22. Qxe7 {[%emt 0:00:09]} Rxe7 {[%emt 0:00:02]} 23. a4 {[%emt 0:00:19][%cal Ba3a4,Ba4a5][%mdl 32]} a6 {[%emt 0:00:17]} 24. a5 {[%emt 0:00:07]} Rc8 {[%emt 0:00:25]} 25. Rb1 {[%emt 0:00:02]} Bc6 {[%emt 0:00:04]} 26. Rb6 {[%emt 0:00:20]} h5 {[%emt 0:00:17]} 27. Kh2 {[%emt 0:00:18][%cal Bg1h2,Bh2g3,Bg3f4,Bf4g5][%mdl 32]} g6 {[%emt 0:00:06]} 28. Kg3 {[%emt 0:00:04]} Kh7 {[%emt 0:00:41]} 29. Kf4 {[%emt 0:00:04]} Rg8 {[%emt 0:00:23] [#]} 30. Bxa6 $1 {[%emt 0:00:15]} Ra8 {[%emt 0:00:33]} (30... Rc8 31. Be2) 31. Bb5 {[%emt 0:00:05]} Rxa5 {[%emt 0:00:05]} 32. Bxc6 {[%emt 0:00:03]} bxc6 {[%emt 0:00:03]} 33. Rxc6 {[%emt 0:00:02] Black must now prevent Kg5.} Ra4+ {[%emt 0:00:02]} 34. Kg5 {[%emt 0:00:37]} Rg4+ {[%emt 0:00:11]} 35. Kf6 {[%emt 0:00:02]} Re8 {[%emt 0:00:09]} 36. g3 {[%emt 0:00:17]} g5 {[%emt 0:01:35]} 37. Rc7+ {[%emt 0:00:15]} Kh6 {[%emt 0:00:05]} 38. hxg5+ {[%emt 0:00:02]} Rxg5 {[%emt 0:00:08]} 39. Bf4 {[%emt 0:00:09][%csl Gf6,LRe6,LRg5][%cal Rf4g5] White mates.} Rf8+ {[%emt 0:00:29]} 40. Rf7 {[%emt 0:00:08][%csl Gf6][%cal Rf4g5]} Rfg8 {[%emt 0:00:05]} 41. Bxg5+ {[%emt 0:00:05]} Rxg5 {[%emt 0:00:02] [#]} 42. Rh7+ $3 {[%emt 0:00:02][%mdl 512] Weighted Error Value: White=0.04 (flawless) /Black=0.39} 1-0

[Event "Romanian Rapid Open 2022"]
[Site "Sebes"]
[Date "2022.12.02"]
[Round "1.11"]
[White "Kedves, Lorand"]
[Black "Bulmaga, Irina"]
[Result "0-1"]
[ECO "A45"]
[WhiteElo "1641"]
[BlackElo "2426"]
[Annotator "TA"]
[PlyCount "108"]
[EventDate "2022.12.02"]
[EventType "rapid"]
[EventCountry "ROU"]
[SourceTitle "playchess.com"]
[Source "ChessBase"]
[SourceQuality "1"]
[TimeControl "600+5"]

{[%evp 9,107,32,29,6,2,22,7,6,16,6,17,1,12,-11,15,0,92,94,110,89,87,-4,0,-4,17,0,24,25,109,8,21,0,0,-36,-4,-93,-95,-150,-135,-169,-135,-128,-124,-169,-164,-288,-250,-289,-230,-263,-191,-339,-329,-362,-316,-318,-287,-211,-164,-151,-39,-120,-123,-132,-143,-204,-198,-199,-192,-268,-250,-546,-517,-484,-466,-634,-591,-633,-579,-606,-615,-850,-820,-1029,-1026,-29981,-29981,-29982,-29983,-29983,-29984,-29984,-29985,-29985,-29986,-29985,-29986,-29989,-29990,-29999]} 1. d4 {[%emt 0:00:02]} Nf6 {[%emt 0:00:03]} 2. Bf4 {[%emt 0:00:02]} e6 {[%emt 0:00:07]} 3. e3 {[%emt 0:00:02]} d6 {[%emt 0:00:02]} 4. h3 {[%emt 0:00:02]} g6 {[%emt 0:00:03]} 5. Nf3 {[%emt 0:00:02]} Bg7 {[%emt 0:00:02]} 6. Nbd2 {[%emt 0:00:02] A45: Trompowsky Attack.} O-O {[%emt 0:00:06]} 7. Bc4 {[%emt 0:00:03]} b6 {[%emt 0:00:04]} 8. c3 {[%emt 0:00:02] The position is equal.} Bb7 {[%emt 0:00:02]} 9. O-O {[%emt 0:00:04]} Nbd7 {[%emt 0:00:10] [#]} 10. Bg3 $146 {[%emt 0:00:02]} ({Predecessor:} 10. Qe2 a6 11. a4 a5 12. Bb5 Qe7 13. e4 e5 14. Bh2 c6 15. Bd3 Rfe8 16. Rfe1 Qd8 17. Nc4 {½-½ (37) Bagheri,A (2361)-Degardin,S (2259) Noisiel 2020}) 10... Qe7 {[%emt 0:00:08]} 11. Rc1 {[%emt 0:00:26]} h6 {[%emt 0:00:03]} 12. Qc2 {[%emt 0:00:17]} e5 {[%emt 0:00:04]} (12... Nh5 $11) 13. dxe5 $16 {[%emt 0:00:07]} ({Not} 13. Qxg6 d5 14. Qf5 e4 $17) 13... Nxe5 {[%emt 0:00:18]} 14. Nxe5 {[%emt 0:00:03]} dxe5 {[%emt 0:00:03]} 15. Be2 {[%emt 0:00:17]} (15. Qxg6 $16 {Threatens to win with Rcd1.} b5 16. Bb3) 15... Rad8 {[%emt 0:00:23]} 16. Rfd1 {[%emt 0:00:05]} a5 {[%emt 0:00:11]} 17. Bf3 {[%emt 0:00:04]} (17. Bh4 {feels hotter.} Rfe8 18. Bb5 Rf8 19. Bc4) 17... e4 {[%emt 0:00:32]} 18. Be2 {[%emt 0:00:02]} Nd5 {[%emt 0:00:30]} (18... Rc8 $11) 19. a3 {[%emt 0:00:59]} ({And not} 19. Nxe4 Nxe3 $1 20. fxe3 Bxe4 $17) (19. Qxe4 $16 Qxe4 20. Nxe4) 19... f5 $11 {[%emt 0:00:07]} 20. Bc4 {[%emt 0:00:24]} Kh8 {[%emt 0:00:06]} 21. Nb3 {[%emt 0:00:36]} c5 {[%emt 0:00:23]} 22. Bxd5 {[%emt 0:00:46]} (22. Bh2 $11 {remains equal.}) 22... Bxd5 $17 {[%emt 0:00:05]} 23. c4 {[%emt 0:01:22] Against g5} ({White should play} 23. Nd2) 23... Be6 {[%emt 0:00:14]} 24. Rd2 {[%emt 0:00:16]} Rxd2 {[%emt 0:00:05]} 25. Nxd2 {[%emt 0:00:01]} Rd8 {[%emt 0:00:05]} 26. b3 {[%emt 0:01:03]} Rd3 {[%emt 0:00:08]} 27. Nb1 {[%emt 0:00:43]} (27. Nf1 {was worth a try.}) 27... Qd7 $19 {[%emt 0:00:09]} 28. a4 {[%emt 0:00:10]} Kh7 {[%emt 0:00:03][%cal Bh8h7,Bh7g6,Bg6f6,Bf6e5][%mdl 32]} 29. Rf1 {[%emt 0:00:31]} Bf6 {[%emt 0:00:11]} 30. Bb8 {[%emt 0:00:18]} (30. Na3 $142) 30... g5 {[%emt 0:00:12]} 31. Na3 {[%emt 0:00:21]} Rd2 {[%emt 0:00:08]} 32. Qb1 {[%emt 0:00:02]} Kg6 {[%emt 0:01:11] Hoping for ...Rb2.} 33. Nb5 {[%emt 0:00:04]} Bf7 {[%emt 0:00:31]} 34. Bc7 {[%emt 0:00:36] [#]} Bd8 {[%emt 0:00:15] Black has more active pieces.} ({Black should try} 34... Rb2 $1 $17 {[%cal Rb2b1]} 35. Qc1 Rxb3 36. Bxb6 Qd3) 35. Bxd8 {[%emt 0:00:13]} (35. Be5 $15) 35... Qxd8 $17 {[%emt 0:00:01]} 36. Qa1 {[%emt 0:00:04] [#]} Qf6 $1 {[%emt 0:00:09] Against Qe5} 37. Qxf6+ {[%emt 0:00:11]} (37. Qb1 $17) 37... Kxf6 {[%emt 0:00:02][%mdl 4096] Endgame KRB-KRN} 38. Rb1 {[%emt 0:00:02]} Ke5 {[%emt 0:00:05]} 39. Kf1 {[%emt 0:00:03]} (39. g3 $142) 39... f4 {[%emt 0:00:02]} 40. Ke1 $2 {[%emt 0:00:06]} (40. Nc7) 40... fxe3 $19 {[%emt 0:00:02]} 41. fxe3 {[%emt 0:00:16]} Rxg2 {[%emt 0:00:03] aiming for ...Rg1+.} 42. Kf1 {[%emt 0:00:13] Prevents Rg1+.} Rh2 {[%emt 0:00:03] White must now prevent ...Rh1+.} 43. Kg1 {[%emt 0:00:07] Prevents Rh1+.} Re2 {[%emt 0:00:06]} 44. Na7 {[%emt 0:00:27]} Rxe3 {[%emt 0:00:19]} 45. Nc8 {[%emt 0:00:07]} Rxh3 {[%emt 0:00:16]} 46. Nxb6 {[%emt 0:00:01]} Be6 {[%emt 0:00:11]} 47. Na8 {[%emt 0:00:11]} e3 {[%emt 0:00:16] Black mates.} 48. Nc7 {[%emt 0:00:07]} Bf5 {[%emt 0:00:07]} 49. Re1 {[%emt 0:00:14]} Be4 {[%emt 0:00:11][%csl Ge4][%cal Rh3h1]} 50. Kf1 {[%emt 0:00:16]} Kf4 {[%emt 0:00:12]} 51. Ke2 {[%emt 0:00:18]} Rh2+ {[%emt 0:00:03]} 52. Kd1 {[%emt 0:00:02]} Ra2 {[%emt 0:00:17]} 53. Ne6+ {[%emt 0:00:07]} Kf3 {[%emt 0:00:12][%cal Ra2a1]} 54. Nxc5 {[%emt 0:00:14]} Ra1# {[%emt 0:00:03] Weighted Error Value: White=0.62/Black=0.20 (precise)} 0-1

[Event "Romanian Rapid Open 2022"]
[Site "Sebes"]
[Date "2022.12.02"]
[Round "1.12"]
[White "Ghimpu, Samuel-Timotei"]
[Black "Stan, Ion-Gabriel"]
[Result "1-0"]
[ECO "B41"]
[WhiteElo "2455"]
[BlackElo "1562"]
[Annotator "TA"]
[PlyCount "35"]
[EventDate "2022.12.02"]
[EventType "rapid"]
[EventCountry "ROU"]
[SourceTitle "playchess.com"]
[Source "ChessBase"]
[SourceQuality "1"]
[TimeControl "600+5"]

{[%evp 14,35,35,26,17,39,45,43,272,269,270,289,331,323,731,722,1475,1458,1353,1254,3023,2800,2505,2401]} 1. e4 {[%emt 0:00:06]} c5 {[%emt 0:00:02]} 2. Nf3 {[%emt 0:00:02]} e6 {[%emt 0:00:02]} 3. d4 {[%emt 0:00:05]} cxd4 {[%emt 0:00:03]} 4. Nxd4 {[%emt 0:00:02]} a6 {[%emt 0:00:01]} 5. c4 {[%emt 0:00:08]} Qc7 {[%emt 0:00:03]} 6. Nc3 {[%emt 0:00:02]} Nf6 {[%emt 0:00:02]} 7. Be2 {[%emt 0:00:02]} Bb4 {[%emt 0:00:08]} 8. O-O {[%emt 0:00:04]} Bxc3 {[%emt 0:00:12] B41: Sicilian: Kan Variation: 5 c4.} 9. bxc3 {[%emt 0:00:01] And now Ba3 would win.} Nxe4 {[%emt 0:00:02]} 10. Bf3 {[%emt 0:00:02]} Nf6 {[%emt 0:00:03]} ({Black should play} 10... Nc5 $1 $14) 11. Ba3 $18 {[%emt 0:00:01][%cal Od4f5] Strongly threatening Nf5! A strong pair of Bishops.} d6 {[%emt 0:00:03] [#]} 12. Nb3 $1 {[%emt 0:00:09] [#]} Nc6 $146 {[%emt 0:00:06]} ({Predecessor:} 12... Bd7 13. Bxd6 Qc8 14. Nc5 Bc6 15. Rb1 b5 16. a4 bxc4 17. Rb7 Nd5 18. Bxd5 Bxd5 19. Rc7 Qd8 20. Qxd5 Qxc7 21. Bxc7 exd5 22. Re1+ Kf8 23. Bd6+ Kg8 24. Re8# {1-0 (24) Shvedova,A (2065)-Savitha Shri,B (2281) Tornelo 2021}) 13. Bxd6 {[%emt 0:00:10]} ({Not} 13. Qxd6 Qxd6 14. Bxd6 Ne7 $18) 13... Qb6 {[%emt 0:00:06]} (13... Qd8 14. Rb1 Ne7) 14. Rb1 {[%emt 0:00:24][%cal Ba1b1,Bb1b7,Bb7d7][%mdl 32] White is clearly winning.} Bd7 {[%emt 0:00:28]} 15. Nc5 {[%emt 0:00:20]} Qa5 {[%emt 0:00:15]} 16. Rxb7 {[%emt 0:00:12] aiming for Nxd7.} Rc8 {[%emt 0:00:13]} 17. Nxd7 {[%emt 0:02:35]} Nxd7 {[%emt 0:00:03] [#]} 18. Rxd7 $1 {[%emt 0:00:26][%mdl 512] Black did not feel at home in the position after the opening.   Weighted Error Value: White=0.02 (flawless) /Black=0.64} 1-0

[Event "Romanian Rapid Open 2022"]
[Site "Sebes"]
[Date "2022.12.02"]
[Round "1.13"]
[White "Iosif, Mihai-Aurelian"]
[Black "Stoleriu, George"]
[Result "0-1"]
[ECO "A45"]
[WhiteElo "1549"]
[BlackElo "2389"]
[Annotator "TA"]
[PlyCount "70"]
[EventDate "2022.12.02"]
[EventType "rapid"]
[EventCountry "ROU"]
[SourceTitle "playchess.com"]
[Source "ChessBase"]
[SourceQuality "1"]
[TimeControl "600+5"]

{[%evp 9,70,-35,-38,-44,-45,-67,-45,-107,-38,-35,-31,-57,-61,-81,-86,-150,-145,-143,-144,-133,-116,-124,-129,-141,-142,-143,-110,-124,-126,-126,-125,-143,-136,-175,-173,-166,-174,-193,-152,-160,-144,-191,-187,-179,-173,-174,-183,-374,-374,-494,-487,-520,-521,-504,-502,-751,-744,-857,-848,-827,-822,-2854,-2499]} 1. d4 {[%emt 0:00:02]} e6 {[%emt 0:00:02]} 2. Nc3 {[%emt 0:00:03]} Nf6 {[%emt 0:00:03]} 3. Bf4 {[%emt 0:00:04]} Bb4 {[%emt 0:00:11]} 4. a3 {[%emt 0:00:02]} Bxc3+ {[%emt 0:00:03]} 5. bxc3 {[%emt 0:00:01]} b6 {[%emt 0:00:01]} 6. Nf3 {[%emt 0:00:10] A45: Trompowsky Attack.} Bb7 {[%emt 0:00:01] [#]} 7. Qd3 $146 {[%emt 0:00:06]} ({Predecessor:} 7. Bg5 d6 8. e3 O-O 9. Bd3 Nbd7 10. O-O e5 11. dxe5 Nxe5 12. Nxe5 dxe5 13. Rb1 {0-1 (38) Hjorth,E (1591)-Olesen,P (1509) Skorping 2017}) 7... d6 {[%emt 0:00:04]} 8. g3 {[%emt 0:00:11]} ({White should play} 8. Nd2 $15) 8... Nc6 {[%emt 0:00:25]} ({Black should try} 8... h6 $17 {White must now prevent ...g5.} 9. Bg2 Be4) 9. Bg2 {[%emt 0:00:03]} Na5 {[%emt 0:00:01]} 10. O-O {[%emt 0:00:07]} Be4 {[%emt 0:00:06]} 11. Qd1 {[%emt 0:00:11]} Qd7 {[%emt 0:00:04]} 12. Nd2 {[%emt 0:00:17]} (12. Ne1 $142) 12... Bxg2 $17 {[%emt 0:00:03]} 13. Kxg2 {[%emt 0:00:01]} Qc6+ {[%emt 0:00:01]} 14. Kg1 {[%emt 0:00:02]} Qxc3 {[%emt 0:00:03]} 15. Nf3 {[%emt 0:00:24]} Qc6 {[%emt 0:00:06] Black is much more active. The white rooks are badly placed.} 16. Re1 {[%emt 0:00:11]} O-O {[%emt 0:00:11]} 17. Qd3 {[%emt 0:00:42]} Qe4 {[%emt 0:00:27]} 18. Ng5 {[%emt 0:00:45]} Qxd3 {[%emt 0:00:03]} 19. exd3 {[%emt 0:00:02]} Nc6 {[%emt 0:00:15]} 20. c3 {[%emt 0:00:15]} Rfe8 {[%emt 0:00:10]} 21. Ne4 {[%emt 0:00:30]} Nd5 {[%emt 0:00:17]} 22. Bd2 {[%emt 0:00:09]} h6 {[%emt 0:00:07]} 23. f4 {[%emt 0:00:05]} f5 {[%emt 0:00:11]} 24. Nf2 {[%emt 0:00:04]} e5 {[%emt 0:00:13]} 25. c4 {[%emt 0:00:18] [#]} (25. fxe5 $17 dxe5 26. dxe5) 25... Nxd4 $1 {[%emt 0:00:59] aiming for ...Nf3+.} 26. cxd5 {[%emt 0:00:03]} Nf3+ {[%emt 0:00:02]} 27. Kg2 {[%emt 0:00:18]} Nxd2 {[%emt 0:00:02][%cal Bf3d2,Bd2b3,Bb3d4,Bd4e2][%mdl 32]} 28. Re2 $2 {[%emt 0:00:27]} (28. fxe5 {was called for.} dxe5 29. Rac1) 28... Nb3 $19 {[%emt 0:00:02]} 29. Rae1 {[%emt 0:00:07]} Nd4 {[%emt 0:00:02] Prevents Rc2. Black is clearly winning.} 30. Rb2 {[%emt 0:01:39]} exf4 {[%emt 0:00:03][%cal Be5f4,Bf4f3][%mdl 32]} 31. Rxe8+ {[%emt 0:00:24]} Rxe8 {[%emt 0:00:01]} 32. Rb4 {[%emt 0:00:01]} f3+ {[%emt 0:00:13]} 33. Kh3 {[%emt 0:00:13]} Ne2 {[%emt 0:00:05]} 34. g4 {[%emt 0:00:31]} f4 {[%emt 0:00:38] [#] And now ...Ng1+ would win.} 35. Rc4 {[%emt 0:00:32]} g5 {[%emt 0:00:04] Weighted Error Value: White=0.65/Black=0.07 (flawless)} 0-1

[Event "Romanian Rapid Open 2022"]
[Site "Sebes"]
[Date "2022.12.02"]
[Round "1.14"]
[White "Soltanici, Ruslan"]
[Black "Popescu, Alexandru-Mihai"]
[Result "1-0"]
[ECO "B01"]
[WhiteElo "2357"]
[BlackElo "1634"]
[Annotator "TA"]
[PlyCount "43"]
[EventDate "2022.12.02"]
[EventType "rapid"]
[EventCountry "ROU"]
[SourceTitle "playchess.com"]
[Source "ChessBase"]
[SourceQuality "1"]
[TimeControl "600+5"]

{[%evp 13,43,56,81,71,78,35,44,18,54,47,97,85,89,77,77,90,153,69,102,93,247,190,333,248,544,542,522,493,949,909,946,928]} 1. e4 {[%emt 0:00:04]} d5 {[%emt 0:00:01]} 2. exd5 {[%emt 0:00:02]} Nf6 {[%emt 0:00:01]} 3. d4 {[%emt 0:00:02]} Bg4 {[%emt 0:00:01]} 4. Be2 {[%emt 0:00:01]} Bxe2 {[%emt 0:00:03]} 5. Qxe2 {[%emt 0:00:02]} Qxd5 {[%emt 0:00:05]} 6. Nf3 {[%emt 0:00:02]} Nc6 {[%emt 0:00:02]} 7. c4 {[%emt 0:00:01]} Qf5 {[%emt 0:00:25]} 8. Nc3 {[%emt 0:00:08] B01: Scandinavian Defence.} e6 {[%emt 0:00:18]} 9. O-O {[%emt 0:00:08] d5 is the strong threat.} (9. d5 $5 {[%cal Rd5c6]} Nb4 10. O-O $14) 9... O-O-O {[%emt 0:00:03]} 10. Be3 {[%emt 0:00:31] White is slightly better.} Bd6 {[%emt 0:02:11]} 11. Rab1 {[%emt 0:00:49] [#]} Ng4 $146 {[%emt 0:03:46]} (11... g5 $14) ({Predecessor:} 11... Bf4 12. h3 g5 13. b4 h5 14. b5 Ne7 15. Ne5 Bxe5 16. dxe5 Qxe5 17. Qb2 g4 {0-1 (25) Nguyen,H (1697)-Kavyev,R (2306) Chess.com INT 2021}) 12. c5 {[%emt 0:00:26]} Bf4 {[%emt 0:01:41]} 13. h3 {[%emt 0:00:08] Against e5} Nf6 {[%emt 0:00:39]} 14. b4 {[%emt 0:00:10]} Ne4 {[%emt 0:01:01] Prevents b5.} (14... g5 $142) 15. Rb3 {[%emt 0:02:03]} ({Better is} 15. Nxe4 $16 Qxe4 16. Rfe1) 15... Nxc3 {[%emt 0:00:13]} 16. Rxc3 {[%emt 0:00:02] And now b5 would win.} Nxb4 {[%emt 0:00:44] [#] This costs Black the game.} (16... e5 $16 17. Bxf4 exf4) 17. Qb5 {[%emt 0:00:14]} Nd5 {[%emt 0:00:06]} (17... Bxe3 $2 18. fxe3 f6 19. Qxb4 $18) (17... Nc6 {is a better defense.} 18. Rb3 Rd5 19. Qxb7+ Kd7) 18. Rb3 {[%emt 0:00:01]} b6 {[%emt 0:00:02]} (18... f6 19. Bxf4 (19. Qxb7+ Kd7 $16) 19... Qxf4) 19. Ra3 $18 {[%emt 0:00:51] White is clearly winning.} a5 {[%emt 0:00:12]} 20. cxb6 {[%emt 0:01:01]} cxb6 {[%emt 0:00:00]} (20... Nxb6 $142 21. Qxf5 (21. Rxa5 Qxb5 22. Rxb5 Bd6 $14) (21. Qxa5 Qxa5 22. Rxa5 Bd6 $11) 21... exf5 22. Bxf4 f6) 21. Bxf4 {[%emt 0:00:48] [#] Intending Qc6+ and mate.} Qxf4 {[%emt 0:00:16]} 22. Ne5 {[%emt 0:04:21] Weighted Error Value: White=0.29 (precise) /Black=0.70} 1-0

[Event "Romanian Rapid Open 2022"]
[Site "Sebes"]
[Date "2022.12.02"]
[Round "1.15"]
[White "Tarciuc, Ianis-Mihai"]
[Black "Sfarlog, Tudor-Vlad"]
[Result "0-1"]
[ECO "A21"]
[WhiteElo "1642"]
[BlackElo "2283"]
[Annotator "TA"]
[PlyCount "49"]
[EventDate "2022.12.02"]
[EventType "rapid"]
[EventCountry "ROU"]
[SourceTitle "playchess.com"]
[Source "ChessBase"]
[SourceQuality "1"]
[TimeControl "600+5"]

{[%evp 22,49,-16,-14,8,0,0,0,0,-4,-6,-7,-12,-9,-8,-18,-6,-10,0,0,0,0,0,-2,2,0,0,-13,0,-81]} 1. c4 {[%emt 0:00:02]} g6 {[%emt 0:00:01]} 2. g3 {[%emt 0:00:02]} Bg7 {[%emt 0:00:00]} 3. Bg2 {[%emt 0:00:02]} d6 {[%emt 0:00:01]} 4. Nc3 {[%emt 0:00:07]} e5 {[%emt 0:00:02]} 5. d3 {[%emt 0:00:14]} f5 {[%emt 0:00:05]} 6. e3 {[%emt 0:00:13]} Nf6 {[%emt 0:00:01]} 7. Nge2 {[%emt 0:00:02]} O-O {[%emt 0:00:04]} 8. O-O {[%emt 0:00:04]} c6 {[%emt 0:01:01]} 9. Rb1 {[%emt 0:01:13]} a5 {[%emt 0:00:01]} 10. a3 {[%emt 0:00:36]} Be6 {[%emt 0:00:01]} 11. b4 {[%emt 0:00:09]} axb4 {[%emt 0:00:03]} 12. axb4 {[%emt 0:00:02] The position is equal.} d5 {[%emt 0:00:18] A21: English Opening: 1...e5 2 Nc3.} 13. cxd5 {[%emt 0:00:15]} cxd5 {[%emt 0:00:24]} 14. d4 {[%emt 0:00:03]} e4 {[%emt 0:00:26]} 15. Bd2 {[%emt 0:00:52]} Nbd7 {[%emt 0:00:31]} 16. Na4 $1 {[%emt 0:02:20]} Nb6 {[%emt 0:00:43]} 17. Nxb6 {[%emt 0:01:11]} Qxb6 {[%emt 0:00:01]} 18. Qb3 {[%emt 0:00:14]} Rfc8 {[%emt 0:02:16]} 19. Rfc1 {[%emt 0:00:08]} Bf8 {[%emt 0:01:27] [#]} 20. Bf1 $146 {[%emt 0:01:26]} ({Predecessor:} 20. Rxc8 Rxc8 21. Bf1 Bf7 22. b5 Ne8 23. Bb4 Nd6 24. Nc3 Nc4 25. Rd1 Bh6 26. Bc5 {1-0 (78) Bujisho,B (2368)-Dunis,A (2347) Cannes 2001}) 20... g5 {[%emt 0:00:34]} 21. Rxc8 {[%emt 0:02:16]} Rxc8 {[%emt 0:00:00]} 22. b5 {[%emt 0:00:12]} Bd6 {[%emt 0:00:13]} 23. Nc3 {[%emt 0:00:08]} Qd8 {[%emt 0:00:04][%cal Of5f4]} 24. Rc1 {[%emt 0:00:07]} f4 {[%emt 0:00:27]} 25. Na4 {[%emt 0:00:12] Weighted Error Value: White=0.02 (flawless) /Black=0.04 (flawless)} (25. exf4 $11 {keeps the balance.} gxf4 26. Bxf4) 0-1